Cogmind - Beta 16 @@@ ROGUE MODE // 2025.11.13 @ 18:32:48 Player: ChromeKnight Result: Destroyed by B8-OP7(x) with Makeshift Spear Performance ------------- Evolutions (0) 0 Regions Visited (4) 800 Robots Destroyed (17) 85 Value Destroyed (238) 238 Prototype IDs (15) 300 Alien Tech Used (0) 0 Bonus (945) 945 TOTAL SCORE: 2368 Bonus ------- Follower Combat Kills 145 Registered with UFD 300 Met Optimus in HQ 500 Cogmind --------- Core Integrity 0/250 Matter 275/300 Energy 95/100 System Corruption 0% Temperature Cool (0) Movement Core (150) Ox2 Location -7/Scraptown Parts ------- > --- POWER (1) -------- (None) > --- PROPULSION (2) --- (None) > --- UTILITY (2) ------ Small Storage Unit > --- WEAPON (2) ------- Makeshift Sword > --- INVENTORY (8) ---- Light Deuterium Engine Rocket Booster Experimental Sensor Array System Shield LU-1G1's Laser Shovel CPS Tube (2) Peak State ------------ > --- POWER ------------ (None) > --- PROPULSION ------- Cesium-ion Thruster Cesium-ion Thruster > --- UTILITY ---------- Small Storage Unit Improved Light Armor Plating > --- WEAPON ----------- Junk Cannon > --- INVENTORY -------- Experimental Sensor Array Melee Analysis Suite Core Analyzer Makeshift Light Armor Plating CPS Tube Chainsword [Rating: 24] Favorites ----------- Power Ion Engine Engine Ion Engine Propulsion Light Treads Treads Light Treads Flight Unit Cesium-ion Thruster Utility Heat Sink Device Heat Sink Storage Huge Storage Unit Processor A0-MCA's Component Scanner Protection Improved Light Armor Plating Weapon EM Pulse Gun Energy Gun EM Pulse Gun Ballistic Gun Light Assault Rifle Launcher Grenade Launcher Special Weapon LU-1G1's Laser Shovel Slashing Weapon Makeshift Sword Build | -11 -10 -10 -10 -7 ------- Run | Yrd Mat Min Sub Scr Slots Evolved . | . . . . . Power . | . . . . . Propulsion . | . . . . . Utility . | . . . . . Weapon . | . . . . . Parts Attached 21 | 7 3 . . 11 Power 1 | 1 . . . . Engine 1 | 1 . . . . Core . | . . . . . Reactor . | . . . . . Propulsion 6 | 2 . . . 4 Treads 4 | 2 . . . 2 Leg . | . . . . . Wheel . | . . . . . Hover . | . . . . . Flight 2 | . . . . 2 Utility 5 | 1 2 . . 2 Device 1 | . 1 . . . Storage 2 | 1 1 . . . Processor 1 | . . . . 1 Hackware . | . . . . . Protection 1 | . . . . 1 Artifact . | . . . . . Weapon 9 | 3 1 . . 5 Energy Gun 2 | 2 . . . . Energy Cannon . | . . . . . Ballistic Gun 1 | 1 . . . . Ballistic Cannon . | . . . . . Launcher 1 | . 1 . . . Special Weapon 2 | . . . . 2 Impact Weapon . | . . . . . Slashing Weapon 3 | . . . . 3 Piercing Weapon . | . . . . . Special Melee Weapon . | . . . . . Unidentified Prototypes 2 | . . . . 2 Parts Lost 3 | . 1 . . 2 Power 1 | . 1 . . . Propulsion 2 | . . . . 2 Utility . | . . . . . Weapon . | . . . . . Highest Loss Streak 2 | . 1 . . 2 To Critical Strikes . | . . . . . Average Backups 12 | . 4 8 11 16 Power . | . . . . . Propulsion 1 | . . 2 2 . Utility 5 | . 1 4 5 6 Weapon 5 | . 1 2 3 7 Tool/Special . | . . . . . Unused Backups 37 | . . 2 . 35 Power 2 | . . . . 2 Propulsion 7 | . . 2 . 5 Utility 15 | . . . . 15 Weapon 11 | . . . . 11 Tool/Special 2 | . . . . 2 Average Slot Usage (%) 84 | . 97 85 85 82 Engine 1 | . 13 . . . Treads 25 | . 28 28 28 23 Flight 2 | . . . . 4 Device 12 | . 11 14 14 11 Storage 13 | . 14 14 14 13 Energy Gun 16 | . 27 28 18 10 Launcher 8 | . . . 9 10 Slashing Weapon 2 | . . . . 5 Peak Build Rating 24 | 6 8 7 9 24 Average Rating 9 | 3 6 6 7 12 On Entrance 5 | . 6 7 7 9 Avg Prop Armor Cover (%) . | . . . . . Naked Turns . | . . . . . Heaviest Build 91 | 13 91 84 86 87 Greatest Support 40 | 40 40 40 40 40 Greatest Overweight (x) 2 | . 2 2 2 2 Average Overweight (x) 1 | . 1 2 2 1 Largest Inventory Capacity 25 | 8 25 25 25 25 Average Capacity 23 | 6 20 25 25 22 Most Carried 25 | . 10 10 17 25 Average Carried 13 | . 4 8 12 16 Final Capacity 25 | 8 25 25 25 8 Final Carried 17 | . 10 9 17 6 Class Distribution -------------------- 92% | Mutant 7% | Sprinter Dominant Class ---------------- Mutant | -10/Materials Mutant | -10/Mines Mutant | -10/Subcaves Mutant | -7/Scraptown Resources | -11 -10 -10 -10 -7 ----------- Run | Yrd Mat Min Sub Scr Matter Collected 605 | 213 77 55 110 150 Remotely . | . . . . . Salvage Created 352 | . 248 55 49 . Parts 31 | . 24 5 2 . Haulers Intercepted 2 | . 2 . . . Recyclers Shooed 1 | . 1 . . . Parts Field Recycled . | . . . . . Retrieved Matter . | . . . . . Parts Self-Destructed 5 | . . . 5 . Prevented . | . . . . . Parts Restored . | . . . . . Kills | -11 -10 -10 -10 -7 ------- Run | Yrd Mat Min Sub Scr Combat Hostiles Destroyed 14 | . 10 3 1 . Guns 5 | . 2 3 . . AOE 9 | . 8 . 1 . Classes Destroyed 6 | . 4 . 2 . Hauler 2 | . 2 . . . Operator 1 | . 1 . . . Swarmer 11 | . 8 3 . . Grunt 2 | . 2 . . . Artisan 1 | . . . 1 . Subdweller 1 | . . . 1 . Best Kill Streak 8 | . 8 3 1 . Combat Bots Only 8 | . 8 3 1 . Max Kills in Single Turn 5 | . 5 1 1 . Gunslinging . | . . . . . Exploded 5 | . 5 . 1 . Melee . | . . . . . Uniques/NPCs Destroyed . | . . . . . Combat | -11 -10 -10 -10 -7 -------- Run | Yrd Mat Min Sub Scr Hostile Shots Fired 74 | . 40 7 8 19 Missed 17 | . 9 1 2 5 Hits 57 | . 31 6 6 14 Melee 2 | . . . . 2 Projectile 55 | . 31 6 6 12 Critical Strikes 1 | . . . . 1 Damage Taken 732 | . 289 44 154 245 Core 254 | . 37 12 49 156 Absorbed by Shields . | . . . . . Core Remaining (%) 100 | 100 . . . . Volleys Fired 50 | . 29 4 17 . Largest 2 | . 2 2 2 . Hottest 80 | . 80 80 80 . Shots Fired 80 | . 52 8 20 . Gun 66 | . 48 8 10 . Cannon . | . . . . . Launcher 14 | . 4 . 10 . Special . | . . . . . Kinetic . | . . . . . Thermal 30 | . 23 4 3 . Explosive 14 | . 4 . 10 . Electromagnetic 36 | . 25 4 7 . Robot Hit Streak 5 | . 5 4 4 . Robot Miss Streak 6 | . 6 1 2 . Penetration Max . | . . . . . Secondary Targets . | . . . . . Shots Hit Robots 40 | . 29 4 6 1 Core Hits 29 | . 20 3 6 . Critical Kills . | . . . . . Critical Parts Destroyed . | . . . . . Critical Strikes . | . . . . . Melee Attacks 6 | . . . . 6 Impact . | . . . . . Slashing 6 | . . . . 6 Piercing . | . . . . . Sneak Attacks . | . . . . . Combat Hostiles . | . . . . . Follow-up Attacks . | . . . . . Damage Inflicted 1012 | . 664 45 295 8 Guns 424 | . 344 45 35 . Cannons . | . . . . . Explosions 580 | . 320 . 260 . Melee 8 | . . . . 8 Ramming . | . . . . . Kinetic . | . . . . . Thermal 166 | . 142 12 12 . Explosive 580 | . 320 . 260 . Electromagnetic 258 | . 202 33 23 . Impact . | . . . . . Slashing 8 | . . . . 8 Piercing . | . . . . . Highest Corruption . | . . . . . Average Corruption . | . . . . . Corruption Purged . | . . . . . Corruption Blocked . | . . . . . Overload Shots . | . . . . . Overflow Damage . | . . . . . Projectiles . | . . . . . Explosions . | . . . . . Melee . | . . . . . Knockbacks . | . . . . . Impact . | . . . . . Kinetic . | . . . . . Secondary . | . . . . . Self-Inflicted Damage 14 | . 14 . . . Shots 1 | . 1 . . . Rammed . | . . . . . Targets Rammed . | . . . . . Kicked . | . . . . . Crushed . | . . . . . Highest Temperature 120 | . 120 . . 12 Average Temperature 52 | . 54 . . 8 Received Heat Transfer 243 | . 54 . 48 141 Siege Activations . | . . . . . Martial Activations . | . . . . . Shielding Activations . | . . . . . Robots Disrupted . | . . . . . Combat Hostiles . | . . . . . Robots Corrupted . | . . . . . Combat Hostiles . | . . . . . Parts Fried 1 | . 1 . . . Impact Corruptions . | . . . . . Robots Melted . | . . . . . Combat Hostiles . | . . . . . Parts Melted . | . . . . . Heat Transferred 375 | . 325 25 25 . Parts Sabotaged . | . . . . . Parts Stolen . | . . . . . Parts Stripped . | . . . . . Power Chain Reactions . | . . . . . Alert | -11 -10 -10 -10 -7 ------- Run | Yrd Mat Min Sub Scr Maximum Alert Level 1 | . 1 . . . Low Security (%) 99 | 100 98 100 . . Level 1 . | . 1 . . . Level 2 . | . . . . . Level 3 . | . . . . . Level 4 . | . . . . . Level 5 . | . . . . . High Security . | . . . . . Max Security . | . . . . . Peak Influence 218 | . 218 82 . . Initial 82 | . . 82 . . Average 9 | . 10 9 . . Influence Increases 398 | . 328 70 . . Destroy 0b10 Robot/C 260 | . 200 60 . . Destroy 0b10 Robot/NC 15 | . 15 . . . Destroy Leader 44 | . 34 10 . . Successful Hack 10 | . 10 . . . Destroy Structure 24 | . 24 . . . Partial Spotted 15 | . 15 . . . Lose Combat Pursuer 30 | . 30 . . . Influence Decreases 398 | . 116 282 . . Entered New Map 130 | . . 130 . . Time Decay 258 | . 106 152 . . Lost Part 10 | . 10 . . . Squads Dispatched 2 | . 2 . . . Investigation . | . . . . . Extermination . | . . . . . Reinforcement 2 | . 2 . . . Assault . | . . . . . Garrison . | . . . . . Intercept . | . . . . . Searches Triggered . | . . . . . Construction Impeded . | . . . . . Haulers Reinforced . | . . . . . Active Scanning Responses . | . . . . . Cargo Convoy Interrupts . | . . . . . Stealth | -11 -10 -10 -10 -7 --------- Run | Yrd Mat Min Sub Scr Distress Signals . | . . . . . Communications Jammed . | . . . . . Distress Signals . | . . . . . Times Spotted 37 | . 19 3 5 10 Peak Tracking Total 11 | . 11 3 2 4 Tactical Retreats 3 | . 2 . 1 . Traps | -11 -10 -10 -10 -7 ------- Run | Yrd Mat Min Sub Scr Traps Triggered . | . . . . . Indirectly . | . . . . . Trap Hack Attempts . | . . . . . Triggered . | . . . . . Disarmed . | . . . . . Reprogrammed . | . . . . . Reused . | . . . . . Traps Extracted . | . . . . . Installed . | . . . . . Triggered . | . . . . . Machines | -11 -10 -10 -10 -7 ---------- Run | Yrd Mat Min Sub Scr Machines Disabled 6 | . 1 . . 5 Max in Single Turn 1 | . 1 . . 1 Machines Repaired . | . . . . . Machines Dismantled . | . . . . . Machines Sabotaged . | . . . . . Overloaded Fab Kills . | . . . . . Hacking | -11 -10 -10 -10 -7 --------- Run | Yrd Mat Min Sub Scr Machines Accessed 3 | . 2 . . 1 Terminals 2 | . 2 . . . Fabricators . | . . . . . Repair Stations . | . . . . . Recycling Units . | . . . . . Scanalyzers . | . . . . . Garrison Access . | . . . . . Total Hacks 7 | . 6 . . 1 Successful 3 | . 2 . . 1 Failed 4 | . 4 . . . Catastrophic . | . . . . . Database Lockouts . | . . . . . Manual 5 | . 5 . . . Terminals 6 | . 6 . . . Fabricators . | . . . . . Repair Stations . | . . . . . Recycling Units . | . . . . . Scanalyzers . | . . . . . Garrison Access . | . . . . . Terminal Hacks 1 | . . . . 1 Record 1 | . . . . 1 Fabricator Hacks . | . . . . . Repair Station Hacks . | . . . . . Recycling Unit Hacks . | . . . . . Scanalyzer . | . . . . . Garrison Access Hacks . | . . . . . Unauthorized Hacks 2 | . 2 . . . Terminals 2 | . 2 . . . Operators 1 | . 1 . . . Skim 1 | . 1 . . . Fabricators . | . . . . . Repair Stations . | . . . . . Recycling Units . | . . . . . Scanalyzers . | . . . . . Garrison Access . | . . . . . Data Cores Recovered . | . . . . . Used . | . . . . . Hacking Detections 2 | . 2 . . . Full Trace Events 1 | . 1 . . . Feedback Events . | . . . . . Feedback Blocked . | . . . . . Robot Schematics Acquired . | . . . . . Robots Built . | . . . . . Authchips . | . . . . . Time . | . . . . . Total Robot Build Rating . | . . . . . Part Schematics Acquired . | . . . . . Parts Built . | . . . . . Authchips . | . . . . . Time . | . . . . . Total Part Build Rating . | . . . . . Part Studies Acquired . | . . . . . Parts Repaired . | . . . . . Time . | . . . . . Parts Recycled . | . . . . . Recycled Matter . | . . . . . Retrieved Matter . | . . . . . Retrieved Components . | . . . . . Parts Scanalyzed . | . . . . . Part Schematics Acquired . | . . . . . Parts Damaged . | . . . . . Bothacking | -11 -10 -10 -10 -7 ------------ Run | Yrd Mat Min Sub Scr Used RIF Installer . | . . . . . Robots Hacked . | . . . . . Non-combat . | . . . . . Combat . | . . . . . Robot Hacks Applied . | . . . . . Relay Couplers Released . | . . . . . Fabnet Peak Effective % . | . . . . . Robots Rewired . | . . . . . Allies Hacked . | . . . . . Hacks Repelled . | . . . . . Allies | -11 -10 -10 -10 -7 -------- Run | Yrd Mat Min Sub Scr Total Allies 3 | . . . . 3 Largest Group 3 | . . . . 3 Highest-Rated Group 243 | . . . . 243 Highest-Rated Ally 93 | . . . . 93 Total Orders . | . . . . . Ally Attacks 31 | . . . . 31 Total Damage 1057 | . . . . 1057 Kills 11 | . . . . 11 Allies Corrupted . | . . . . . Allies Melted 5 | . . . . 5 Intel | -11 -10 -10 -10 -7 ------- Run | Yrd Mat Min Sub Scr Active Infowar (turns) . | . . . . . Robot Analysis Total . | . . . . . Derelict Logs Recovered 3 | . . . 1 2 Drone Launches . | . . . . . Drone Recoveries . | . . . . . Exploration | -11 -10 -10 -10 -7 ------------- Run | Yrd Mat Min Sub Scr Turns Passed 10822 | 80 867 1363 2920 5592 Spaces Moved 4105 | 50 288 392 878 2497 Core 29 | 9 . . . 20 Treads 3053 | 41 288 392 878 1454 Legs . | . . . . . Wheels . | . . . . . Hover . | . . . . . Flight 1023 | . . . . 1023 Fastest Speed 32 | 50 160 320 320 32 Average Speed 240 | 140 250 320 320 200 Slowest Speed 320 | 160 320 320 320 320 Overloaded Moves . | . . . . . Propulsion Burnouts . | . . . . . Robots Hopped . | . . . . . Potential Cave-ins . | . . . . . Cave-ins Triggered . | . . . . . Exploration Rate (%) 51 | 4 50 60 60 81 Regions Visited 4 Branch Regions 3 Pre-discovered Areas 1 | . . . 1 . Known Exits Taken . | . . . . . Unknown Exits Taken 4 | 1 1 1 1 . Scrap Searched 8 | . . 1 2 5 Spaces Dug 3 | . . . . 3 Terrain Destroyed 72 | . 29 . 40 3 Melee 2 | . . . . 2 Projectile . | . . . . . AOE 69 | . 29 . 40 . Terrain Rammed . | . . . . . Walls Destroyed . | . . . . . Machines Disabled . | . . . . . Actions | -11 -10 -10 -10 -7 --------- Run | Yrd Mat Min Sub Scr Total 5008 | 57 382 495 970 3104 Wait 687 | . 54 96 68 469 Move 4101 | 49 287 391 877 2497 Hop . | . . . . . Pick Up 63 | . 9 1 7 46 Fast Attach 16 | 7 1 . . 8 Attach 8 | . . . . 8 Detach 6 | . . . . 6 Swap 6 | . 2 1 1 2 Drop 65 | 1 . 2 . 62 Fire 50 | . 29 4 17 . Melee 6 | . . . . 6 Ram . | . . . . . Kick . | . . . . . Crush . | . . . . . Escape Stasis . | . . . . . Rewire . | . . . . . Trap . | . . . . . Miscellaneous . | . . . . . Route ------- -11/Scrapyard -10/Materials (discovered 2 exits: [*Mat] / [*Min]) -10/Mines (discovered 2 exits: [*Mat] / [*Sub]) -10/Subcaves (discovered 2 exits: [*Mat] / *Scr) -7/Scraptown (discovered 1 exit: [*Fac]) History --------- Turn | Location | Event 4 | -11/Scrapyard | Discovered new exit (range 16) 81 | -11/Scrapyard | Entered Materials 295 | -10/Materials | Discovered new exit (range 16) 301 | -10/Materials | Build established: Mutant 900 | -10/Materials | Discovered new exit (range 10) 948 | -10/Materials | Entered Mines 955 | -10/Mines | Destroyed 8 combat bots 986 | -10/Mines | Discovered new exit (range 5) 1222 | -10/Mines | Discovered new exit (range 8) 1296 | -10/Mines | Received a Rocket Launcher from a helpful Derelict 2021 | -10/Mines | Assembled infested the area 2311 | -10/Mines | Entered Subcaves 2312 | -10/Subcaves | Approached by a straggling Scientist 2343 | -10/Subcaves | Learned location of Zion (-7) 2881 | -10/Subcaves | Ambushed by angry Subdweller bent on revenge 3709 | -10/Subcaves | Shifting Twisted Machinery released Battle Rifle 3711 | -10/Subcaves | Shifting Twisted Machinery released Mak. Light Armor Plating 4331 | -10/Subcaves | Discovered new exit (range 7) 4857 | -10/Subcaves | Shifting Twisted Machinery released Battle Cannon 4867 | -10/Subcaves | Shifting Twisted Machinery released Riot Gun 4985 | -10/Subcaves | Scientist uncovered a shortcut to Scraptown 5231 | -10/Subcaves | Entered Scraptown 5739 | -7/Scraptown | Heard Great Nut preacher, LISTEN AND RECITE! 6027 | -7/Scraptown | Scanned Subdweller tech in exchange for log data 6037 | -7/Scraptown | Learned location of 2 exits from Upper Caves 6040 | -7/Scraptown | Learned Research stockpile data 6069 | -7/Scraptown | Discovered new exit (range 11) 6498 | -7/Scraptown | Visited IN-MT5's Study 6622 | -7/Scraptown | Visited Comm Corps 6834 | -7/Scraptown | Visited Spacefarers 7308 | -7/Scraptown | Visited Awakened 7414 | -7/Scraptown | Visited SPCMW 7465 | -7/Scraptown | Visited UFD Registry 7465 | -7/Scraptown | Registered with UFD as "Gammabox" 7574 | -7/Scraptown | Visited Cartography Club 7878 | -7/Scraptown | Visited Junk Cannon Lab 7961 | -7/Scraptown | Visited Botcube Research 8041 | -7/Scraptown | Visited Scrapoid Pod Storage 8070 | -7/Scraptown | Visited Modified Component R&D 8223 | -7/Scraptown | Visited DA-N13 Charitable Foundation 8252 | -7/Scraptown | Found DCF Scrap (30 items) 8397 | -7/Scraptown | Delivered Scrap Shield to a Scientist 8506 | -7/Scraptown | Visited A0-MCA Data Center 8592 | -7/Scraptown | Visited Infowarlord's Domain 8615 | -7/Scraptown | Found Exp. Sensor Array 8866 | -7/Scraptown | Found Botcube 9532 | -7/Scraptown | Found Scrap Suit 9876 | -7/Scraptown | Botcube activated 9894 | -7/Scraptown | Botcube completed mutation into legged form, armed with 2 guns. 10033 | -7/Scraptown | Found Prototype Special Weapon 10033 | -7/Scraptown | Identified Junk Cannon 10092 | -7/Scraptown | Visited LU-1G1's Boring Crew 10167 | -7/Scraptown | Given a B+ rating by A0-MCA 10170 | -7/Scraptown | Found A0-MCA's Component Scanner 10177 | -7/Scraptown | Visited Derelict Rescue Squad 10281 | -7/Scraptown | Build established: Sprinter 10315 | -7/Scraptown | Met Optimus 10315 | -7/Scraptown | Accepted into 0bPrime 10715 | -7/Scraptown | Civil war broke out across Scraptown 10720 | -7/Scraptown | Found Prototype Special Weapon 10744 | -7/Scraptown | Identified LU-1G1's Laser Shovel 10748 | -7/Scraptown | Found Lrg. Botcube 10752 | -7/Scraptown | Found Lrg. Botcube 10764 | -7/Scraptown | Lrg. Botcube activated 10774 | -7/Scraptown | Lrg. Botcube activated 10808 | -7/Scraptown | Lost 6 allies 10808 | -7/Scraptown | Core integrity fell below 50% 10822 | -7/Scraptown | Core integrity fell below 20% 10823 | -7/Scraptown | Destroyed by B8-OP7(x) with Makeshift Spear Last Messages --------------- 10772_ Dropped Lrg. Botcube. 10774_ Lrg. Botcube begins transforming into Large Mutated Botcube. 10774_ CU-QYU(x) overheating. 10776_ CU-QYU(x) destroyed. 10777_ V3-40U(j) destroyed. 10778_ Acquired Rocket Booster. 10779_ 03-JQP(j) heat damages Lgt. Deuterium Engine. 10782_ B8-OP7(x): "We're going to need a new survey of Scraptown after this." 10783_ Cesium-ion Thruster destroyed. 10784_ Dropped Imp. Light Armor Plating. 10794_ LU-1G1's Laser Shovel disintegrates Wall. 10796_ LU-1G1's Laser Shovel disintegrates Latest Submissions. 10797_ Dropped LU-1G1's Laser Shovel. 10797_ Acquired LU-1G1's Laser Shovel. 10808_ Cesium-ion Thruster destroyed. 10814_ Critical hit (Burn: +50). Map ----- +----------------------------------------------------+ | | | | | | | | | | | ?????????????????????????????????????????????????? | | ?????????????????????????????????????????????????? | | ?????????????????????????????????????????????????? | | ###???##?????????????????????????????????????????? | | """??""#?????????????????????????????????????????? | | ?? "#?????????????????????????????????????????? | | """ "#?????????????????????????????????????????? | | "" "#?????????????????????????????????????????? | | " "#?????????????????????????????????????????? | | "#?????????????????????????????????????????? | | """"""#?????????????????????????????????????????? | | #?????????????????????????????????????????? | | #?????????????????????????????????????????? | | #?????????????????????????????????????##### | | """#####?????????????????????????????????????#"""# | | %"#?????????????????????????????????"!##""|##! "# | | ""#????????????????????????????? | | """#????????????????????????????? | | """#????????????????????????????????############## | | """#??????????????##########?????????????????????? | | ####??????????????? # #@ #???#######???????????? | | ??????????????###???# # ##x#??#""""""#?????####### | | ??????????????# ##### # #??#""""""#?????#"""""" | | ?? ???????# # # # #??#"" "#?????#"& ! | | """""" ?#???# # ## #### ##??#"" "#?????#" | | "" "" #???# #"" # #???#"" "#?????#"" """ | | " " #???# #### # #???#"" "#????#### ### | | " " #???# ## #"## # #???#" "#????#"" " | | " " #???# # # #??#""" |"###"##"" | | " " #???###### #######??# # " | | ?"" "" #???# =%= #??# #" | | ???""""" #???# !!! #??# #" | | ????? #????########## ###??###### ########### # | | ####### ####???????##### ########### ########### # | | #???????#"""" """"""""""" """"""""""" " | | #???????#" | | #???????#" | | #???????#" | | #???????#" | | ## #???#####" ! | | ?# #???#"""" """""""""""""""""" """"" | | ## #???#"""" """""""""""""""""""""""" | | # #???#"""" ""###### ############## | | #???#"""" ""# #???????? | | # #???#"""" ""# X"???????? | +----------------------------------------------------+ Best States ------------- Heat Dissipation 35 Energy Generation 10 Energy Capacity 250 Matter Stores 300 Matter Capacity 300 Sight Range 16 Terrain Scan Density 10 Armor Coverage 150 Evasion (%) 63 Recoil Reduction 2 Item Schematics ----------------- None Robot Schematics ------------------ None Fabricated ------------ Nothing Repaired ---------- Nothing Studied --------- None Alien Tech Used ----------------- None Achievements -------------- None Challenges ------------ None Game ------ Seed GaussStrikeInjector Manual? 0 Play Time 00:36:19 Cumulative 535.8 hours Start 2025.11.13 @ 17:04:50 End 2025.11.13 @ 18:32:48 Sessions 1 Manual Loads 0 Difficulty Rogue Special Mode None Game No. 868 Rogue 713 Adventurer 148 Explorer 7 Win Type - Total 26 Types 20/1/4/1/0/0/0/0/0/0 Lore% 78 Gallery% 80 Achievement% 65 Wizard Run 0 Options --------- Layout 1 ASCII 0 Keyboard 0 Movement Numpad Keybinds 0 Fullscreen 2 Font 24/Smallcaps Map View 50x35 Zoom Use 0% Tactical HUD 1 Map Filters NONE Filters NONE Steam 1 RUN: 3f139b73-d801-4deb-927c-f0651a7fcdaf